Workbook

Sheet паспорт
A1: ПАТ "УКРТРАНСГАЗ" | G1: ПАСПОРТ ФІЗИКО-ХІМІЧНИХ ПОКАЗНИКІВ ПРИРОДНОГО ГАЗУ № 871
A2: Філія "УМГ "Черкаситрансгаз" | G2: переданого Кременчуцьким ЛВУМГ та прийнятого ВАТ"Кіровоградгаз"
A3: Кременчуцьке ЛВУМГ | G3: Маршрут № 871
A4: Вимірювальна хіміко-аналітична лабораторія
A5: Кременчуцького промислового майданчика
A6: Свідоцтво № 0612 КФ від 30.12.15р. чинне до 20.06.19р. | K6: по газопроводу "Єлець-Кременчук-Кривий Ріг" | V6: за період з | X6: 2017-03-01 | Z6: по | AA6: 2017-03-31
A8: Число місяця | B8: Компонентний склад, % мол. | N8: Фізико-хімічні показники газу обчислені на основі компонентного складу, 101,325 кПа | X8: Температура точки роси за вологою (Р = 3.92 МПа), °С | Y8: Температура точки роси за вуглеводнями, °С | Z8: Вміст сірководню, г/м3 | AA8: Вміст меркаптанової сірки, г/м3 | AB8: Вміст механічних домішок, г/м3
N9: Густина абсолютна, кг/м3,при 20 °С, | O9: Температура вимірювання/згоряння при 20/25°С
B10: метан, С1 | C10: етан, С2 | D10: пропан, С3 | E10: ізо-бутан, і-С4 | F10: н-бутан, н-С4 | G10: нео-пентан, нео-С5 | H10: ізо-пентан, і-С5 | I10: н-пентан, н-С5 | J10: гексани та вищі, С6+ | K10: кисень, О2 | L10: азот, N2 | M10: діоксид вуглецю, CО2 | O10: Теплота згоряння нижча | R10: Теплота згоряння вища | U10: Число Воббе вище
O11: ккал/м³ | P11: МДж/м³ | Q11: кВт⋅год/м³ | R11: ккал/м³ | S11: МДж/м³ | T11: кВт⋅год/м³ | U11: ккал/м³ | V11: МДж/м³ | W11: кВт⋅год/м³
A12: 1 | O12: =P12*238.8459 -> 8147.033649 | P12: 34.11 | Q12: =P12/3.6 -> 9.475 | R12: =S12*238.8459 -> 9030.763479 | S12: 37.81 | T12: =S12/3.6 -> 10.50277778 | AC12: =SUM(B12:M12)+$K$43+$N$43 -> 0
A13: 2 | O13: =P13*238.8459 -> 8147.033649 | P13: 34.11 | Q13: 9.475 | R13: =S13*238.8459 -> 9030.763479 | S13: 37.81 | T13: 10.50277778 | AC13: 0
A14: 3 | O14: 8147.033649 | P14: 34.11 | Q14: 9.475 | R14: 9030.763479 | S14: 37.81 | T14: 10.50277778 | AC14: 0 | AD14: =IF(AC14=100,"ОК"," ") -> 
A15: 4 | O15: 8147.033649 | P15: 34.11 | Q15: 9.475 | R15: 9030.763479 | S15: 37.81 | T15: 10.50277778 | AC15: 0 | AD15: =IF(AC15=100,"ОК"," ") -> 
A16: 5 | O16: 8147.033649 | P16: 34.11 | Q16: 9.475 | R16: 9030.763479 | S16: 37.81 | T16: 10.50277778 | AC16: 0
A17: 6 | B17: 95.8905 | C17: 2.1478 | D17: 0.67 | E17: 0.0994 | F17: 0.1069 | G17: 0.0014 | H17: 0.0227 | I17: 0.0174 | J17: 0.0221 | K17: 0.0066 | L17: 0.8421 | M17: 0.1732 | N17: 0.7002 | O17: 8175.695157 | P17: 34.23 | Q17: 9.508333333 | R17: 9061.813446 | S17: 37.94 | T17: 10.53888889 | U17: =V17/0.0041868 -> 11884.97182 | V17: 49.76 | W17: =V17/3.6 -> 13.82222222 | X17: -22.2 | AC17: 100.0001
A18: 7 | O18: 8175.695157 | P18: 34.23 | Q18: 9.508333333 | R18: 9061.813446 | S18: 37.94 | T18: 10.53888889 | AC18: 0
A19: 8 | O19: 8175.695157 | P19: 34.23 | Q19: 9.508333333 | R19: 9061.813446 | S19: 37.94 | T19: 10.53888889 | AC19: 0
A20: 9 | O20: 8175.695157 | P20: 34.23 | Q20: 9.508333333 | R20: 9061.813446 | S20: 37.94 | T20: 10.53888889 | AC20: 0
A21: 10 | O21: 8175.695157 | P21: 34.23 | Q21: =P21/3.6 -> 9.508333333 | R21: 9061.813446 | S21: 37.94 | T21: =S21/3.6 -> 10.53888889 | AC21: 0
A22: 11 | O22: 8175.695157 | P22: 34.23 | Q22: 9.508333333 | R22: 9061.813446 | S22: 37.94 | T22: 10.53888889 | AC22: 0
A23: 12 | O23: 8175.695157 | P23: 34.23 | Q23: 9.508333333 | R23: 9061.813446 | S23: 37.94 | T23: 10.53888889 | AC23: 0
A24: 13 | B24: 95.1939 | C24: 2.5745 | D24: 0.8256 | E24: 0.1306 | F24: 0.1271 | G24: 0.0014 | H24: 0.0232 | I24: 0.0161 | J24: 0.0129 | K24: 0.0038 | L24: 0.8941 | M24: 0.1968 | N24: 0.7046 | O24: 8199.579747 | P24: 34.33 | Q24: 9.536111111 | R24: 9088.086495 | S24: 38.05 | T24: 10.56944444 | U24: 11916 | V24: 49.89 | W24: =V24/3.6 -> 13.85833333 | X24: -22.2 | AC24: 100 | AD24: ОК
A25: 14 | O25: 8199.579747 | P25: 34.33 | Q25: 9.536111111 | R25: 9088.086495 | S25: 38.05 | T25: 10.56944444 | AC25: 0
A26: 15 | O26: 8199.579747 | P26: 34.33 | Q26: 9.536111111 | R26: 9088.086495 | S26: 38.05 | T26: 10.56944444 | AC26: 0
A27: 16 | O27: 8199.579747 | P27: 34.33 | Q27: =P27/3.6 -> 9.536111111 | R27: 9088.086495 | S27: 38.05 | T27: =S27/3.6 -> 10.56944444 | AC27: 0
A28: 17 | O28: 8199.579747 | P28: 34.33 | Q28: 9.536111111 | R28: 9088.086495 | S28: 38.05 | T28: 10.56944444 | AC28: 0
A29: 18 | O29: 8199.579747 | P29: 34.33 | Q29: 9.536111111 | R29: 9088.086495 | S29: 38.05 | T29: 10.56944444 | AC29: 0
A30: 19 | O30: 8199.579747 | P30: 34.33 | Q30: 9.536111111 | R30: 9088.086495 | S30: 38.05 | T30: 10.56944444 | AC30: 0
A31: 20 | B31: 95.6966 | C31: 2.408 | D31: 0.7657 | E31: 0.1192 | F31: 0.1134 | G31: 0.0013 | H31: 0.0209 | I31: 0.0143 | J31: 0.0117 | K31: 0.005 | L31: 0.6731 | M31: 0.1707 | N31: 0.702 | O31: 8218.687419 | P31: 34.41 | Q31: 9.558333333 | R31: 9107.194167 | S31: 38.13 | T31: 10.59166667 | U31: =V31/0.0041868 -> 11930.35254 | V31: 49.95 | W31: 13.875 | X31: -21.1 | AC31: 99.9999 | AD31: =IF(AC31=100,"ОК"," ") -> 
A32: 21 | O32: 8218.687419 | P32: 34.41 | Q32: 9.558333333 | R32: 9107.194167 | S32: 38.13 | T32: 10.59166667 | AC32: 0
A33: 22 | O33: 8218.687419 | P33: 34.41 | Q33: 9.558333333 | R33: 9107.194167 | S33: 38.13 | T33: 10.59166667 | AC33: 0
A34: 23 | O34: 8218.687419 | P34: 34.41 | Q34: =P34/3.6 -> 9.558333333 | R34: 9107.194167 | S34: 38.13 | T34: =S34/3.6 -> 10.59166667 | AC34: 0 | AD34: =IF(AC34=100,"ОК"," ") -> 
A35: 24 | O35: 8218.687419 | P35: 34.41 | Q35: 9.558333333 | R35: 9107.194167 | S35: 38.13 | T35: 10.59166667 | AC35: 0
A36: 25 | O36: 8218.687419 | P36: 34.41 | Q36: 9.558333333 | R36: 9107.194167 | S36: 38.13 | T36: 10.59166667 | AC36: 0
A37: 26 | O37: 8218.687419 | P37: 34.41 | Q37: 9.558333333 | R37: 9107.194167 | S37: 38.13 | T37: =S37/3.6 -> 10.59166667 | AC37: 0
A38: 27 | O38: 8218.687419 | P38: 34.41 | Q38: 9.558333333 | R38: 9107.194167 | S38: 38.13 | T38: 10.59166667 | AC38: 0
A39: 28 | O39: 8218.687419 | P39: 34.41 | Q39: 9.558333333 | R39: 9107.194167 | S39: 38.13 | T39: 10.59166667 | AC39: 0
A40: 29 | O40: 8218.687419 | P40: 34.41 | Q40: =P40/3.6 -> 9.558333333 | R40: 9107.194167 | S40: 38.13 | T40: =S40/3.6 -> 10.59166667 | AC40: 0
A41: 30 | B41: 95.4026 | C41: 2.6053 | D41: 0.8349 | E41: 0.1318 | F41: 0.1284 | G41: 0.0014 | H41: 0.0237 | I41: 0.0166 | J41: 0.0149 | K41: 0.0045 | L41: 0.6453 | M41: 0.1908 | N41: 0.7047 | O41: 8247.348927 | P41: 34.53 | Q41: =P41/3.6 -> 9.591666667 | R41: 9138.244134 | S41: 38.26 | T41: =S41/3.6 -> 10.62777778 | U41: 11947 | V41: 50.02 | W41: =V41/3.6 -> 13.89444444 | X41: -18.5 | Z41: 0 | AA41: 0 | AB41: відсутні | AC41: 100.0002
A42: 31 | O42: 8247.348927 | P42: 34.53 | Q42: =P42/3.6 -> 9.591666667 | R42: 9138.244134 | S42: 38.26 | T42: =S42/3.6 -> 10.62777778 | AC42: 0
A43: Рівень одоризації відповідає чинним нормативним документам | O43: =8193 -> 8193 | P43: =30.34 -> 30.34 | Q43: =AVERAGE(Q12:Q42) -> 9.530734767 | R43: =9080 -> 9080 | S43: =38.02 -> 38.02 | T43: 10.56272401
H44: Середньозважене значення теплоти згоряння:
B46: Головний інженер Кременчуцького ЛВУМГ | N46: Грицик О. М. | Z46: 2017-04-03
C47: Підрозділу підприємства, якому підпорядкована лабораторія | M47: прізвище | V47: підпис | Z47: дата
B48: Інженер-лаборант ВХАЛ | N48: Голованова Ж. К. | Z48: 2017-04-03
C49: Лабораторія, де здійснювалось вимірювання газу | M49: прізвище | V49: підпис | Z49: дата
B50: Провідний економіст із збуту | N50: Кривулькін І. В. | Z50: 2017-04-03
C51: Підрозділу, відповідального за облік газу за маршрутом | M51: прізвище | V51: підпис | Z51: дата

Sheet додаток
A2: Додаток до Паспорту фізико-хімічних показників природного газу № 871
A4: Область | B4: ГРС, прямий споживач | C4: Cередньозважене значення вищої теплоти згоряння
A5: Кіровоградська область | B5: ГРС Петрове | C5: 38.01597006 | D5: 9079.958584 | E5: 10.55999168
A6: Середньозважене значення вищої теплоти згоряння по маршруту № 871 | C6: 38.01597006 | D6: 9079.958584 | E6: 10.55999168
A10: Головний інженер Кременчуцького ЛВУМГ | D10: Грицик О. М. | F10: 2017-04-03
A11: Підрозділу підприємства, якому підпорядкована лабораторія | D11: прізвище | E11: підпис | F11: дата
A12: Інженер-лаборант ВХАЛ | D12: Голованова Ж. К. | F12: 2017-04-03
A13: Лабораторія, де здійснювалось вимірювання газу | D13: прізвище | E13: підпис | F13: дата
A14: Провідний економіст із збуту | D14: Кривулькін І. В. | F14: 2017-04-03
A15: Підрозділу, відповідального за облік газу за маршрутом | D15: прізвище | E15: підпис | F15: дата

Sheet variablesList (hidden)
A1: 3 | B1: x:\gaysin | C1: 10, 11, 24, 25, 127, 128, 132, 180, 207, 215 | D1: x:\
B2: x:\Illinci
B3: x:\Talne
